fUST/lending_fUST_20250630
["ID","MTS","AMOUNT","RATE_DAILY","PERIOD"]
[368619502,1751241044167,-460.0,0.00018559,2]
[368619503,1751241044176,-481.89417739,0.00018559,2]
[368619504,1751241044187,-460.0,0.00018559,2]
[368619505,1751241044197,-460.0,0.00018559,2]
[368619506,1751241044207,-602.87,0.00018559,2]
[368619507,1751241044217,-460.0,0.00018559,2]
[368619508,1751241044226,-460.0,0.00018559,2]
[368619509,1751241044236,-750.52,0.00018559,2]
[368619510,1751241044246,-316.8719568,0.00018559,2]
[368619511,1751241044383,-460.0,0.00018559,2]
[368619512,1751241044394,-460.0,0.00018559,2]
[368619513,1751241044404,-460.0,0.00018559,2]
[368619514,1751241044414,-460.0,0.00018559,2]
[368619515,1751241044423,-460.0,0.00018559,2]
[368619516,1751241044432,-460.0,0.00018559,2]
[368619517,1751241044442,-460.0,0.00018559,2]
[368619518,1751241044452,-460.0,0.00018559,2]
[368619519,1751241044461,-460.0,0.00018559,2]
[368619520,1751241044470,-665.73,0.00018559,2]
[368619521,1751241044480,-460.0,0.00018559,2]
[368619522,1751241044490,-518.24,0.00018559,2]
[368619523,1751241044499,-460.0,0.00018559,2]
[368619524,1751241044509,-460.0,0.00018559,2]
[368619525,1751241044519,-1005.54,0.00018559,2]
[368619526,1751241044528,-460.0,0.00018559,2]
[368619527,1751241044538,-460.0,0.00018559,2]
[368619528,1751241044547,-460.0,0.00018559,2]
[368619529,1751241044556,-460.0,0.00018559,2]
[368619530,1751241044566,-460.0,0.00018559,2]
[368619531,1751241044575,-460.0,0.00018559,2]
[368619532,1751241044584,-463.13074055,0.00018559,2]
[368619533,1751241044594,-460.0,0.00018559,2]
[368619534,1751241044603,-460.0,0.00018559,2]
[368619535,1751241044613,-460.0,0.00018559,2]
[368619536,1751241044623,-500.0,0.00018559,2]
[368619537,1751241044632,-460.0,0.00018559,2]
[368619538,1751241044642,-460.0,0.00018559,2]
[368619539,1751241044651,-460.0,0.00018559,2]
[368619540,1751241044660,-527.53262341,0.0001856,2]
[368619541,1751241044670,-460.0,0.0001856,2]
[368619542,1751241044680,-460.0,0.0001856,2]
[368619543,1751241044689,-460.0,0.0001856,2]
[368619544,1751241044698,-460.0,0.0001856,2]
[368619545,1751241044707,-956.85,0.0001856,2]
[368619546,1751241044717,-460.0,0.0001856,2]
[368619547,1751241044728,-460.0,0.0001856,2]
[368619548,1751241044738,-460.0,0.0001856,2]
[368619549,1751241044749,-460.0,0.0001856,2]
[368619550,1751241044759,-460.0,0.0001856,2]
[368619551,1751241044768,-460.0,0.0001856,2]
[368619552,1751241044777,-460.0,0.0001856,2]
[368619553,1751241044787,-3836.87,0.0001856,2]
[368619554,1751241044797,-547.33,0.0001856,2]
[368619555,1751241044807,-1212.96,0.0001856,2]
[368619556,1751241044816,-460.0,0.0001856,2]
[368619557,1751241044826,-460.0,0.0001856,2]
[368619558,1751241044835,-460.0,0.0001856,2]
[368619559,1751241044844,-1557.76,0.0001856,2]
[368619560,1751241044855,-511.49,0.0001856,2]
[368619561,1751241044864,-460.0,0.0001856,2]
[368619562,1751241044873,-623.64,0.0001856,2]
[368619563,1751241044883,-460.0,0.00018561,2]
[368619564,1751241044892,-460.0,0.00018561,2]
[368619565,1751241044902,-460.0,0.00018561,2]
[368619566,1751241044911,-460.0,0.00018561,2]
[368619567,1751241044921,-460.0,0.00018561,2]
[368619568,1751241044931,-500.0,0.00018561,2]
[368619569,1751241044945,-500.0,0.00018561,2]
[368619570,1751241044956,-460.0,0.00018562,2]
[368619571,1751241044965,-460.0,0.00018562,2]
[368619572,1751241044976,-460.0,0.00018562,2]
[368619573,1751241044987,-460.0,0.00018562,2]
[368619574,1751241044997,-1246.97,0.00018562,2]
[368619575,1751241045007,-1117.53,0.00018562,2]
[368619576,1751241045017,-460.0,0.00018562,2]
[368619577,1751241045027,-460.0,0.00018562,2]
[368619578,1751241045036,-460.0,0.00018562,2]
[368619579,1751241045045,-1705.81,0.00018562,2]
[368619580,1751241045055,-460.0,0.00018562,2]
[368619581,1751241045064,-460.0,0.00018562,2]
[368619582,1751241045074,-500.0,0.00018562,2]
[368619583,1751241045083,-460.0,0.00018562,2]
[368619584,1751241045093,-1289.95,0.00018562,2]
[368619585,1751241045103,-1644.07,0.00018562,2]
[368619586,1751241045113,-847.69,0.00018562,2]
[368619587,1751241045123,-460.0,0.00018562,2]
[368619588,1751241045132,-460.0,0.00018563,2]
[368619589,1751241045141,-460.0,0.00018563,2]
[368619590,1751241045151,-460.0,0.00018563,2]
[368619591,1751241045160,-460.0,0.00018563,2]
[368619592,1751241045170,-322.66289826,0.00018563,2]
[368619593,1751241045180,-460.0,0.00018563,2]
[368619594,1751241045189,-460.0,0.00018563,2]
[368619595,1751241045199,-460.0,0.00018563,2]
[368619596,1751241045208,-460.0,0.00018563,2]
[368619597,1751241045217,-460.0,0.00018563,2]
[368619598,1751241045226,-253.34835268,0.00018563,2]
[368619599,1751241045235,-460.0,0.00018563,2]
[368619600,1751241045244,-460.0,0.00018563,2]
[368619601,1751241045254,-460.0,0.00018563,2]
[368619602,1751241045263,-460.0,0.00018563,2]
[368619603,1751241045272,-460.0,0.00018563,2]
[368619604,1751241045282,-462.31770727,0.00018563,2]
[368619605,1751241045291,-460.0,0.00018563,2]
[368619606,1751241045301,-460.0,0.00018563,2]
[368619607,1751241045310,-460.0,0.00018563,2]
[368619608,1751241045319,-460.0,0.00018563,2]
[368619609,1751241045328,-460.0,0.00018563,2]
[368619610,1751241045337,-460.0,0.00018563,2]
[368619611,1751241045347,-460.0,0.00018563,2]
[368619612,1751241045356,-460.0,0.00018563,2]
[368619613,1751241045366,-460.0,0.00018563,2]
[368619614,1751241045376,-585.0,0.00018563,2]
[368619615,1751241045385,-460.0,0.00018563,2]
[368619616,1751241045395,-460.0,0.00018563,2]
[368619617,1751241045404,-461.97802635,0.00018563,2]
[368619618,1751241045413,-460.0,0.00018563,2]
[368619619,1751241045423,-460.0,0.00018563,2]
[368619620,1751241045432,-460.0,0.00018563,2]
[368619621,1751241045442,-460.0,0.00018563,2]
[368619622,1751241045451,-460.0,0.00018563,2]
[368619623,1751241045461,-460.0,0.00018563,2]
[368619624,1751241045470,-460.0,0.00018563,2]
[368619625,1751241045480,-460.0,0.00018563,2]
[368619626,1751241045489,-468.70686131,0.00018563,2]
[368619627,1751241045499,-460.0,0.00018563,2]
[368619628,1751241045509,-460.0,0.00018563,2]
[368619629,1751241045518,-460.0,0.00018563,2]
[368619630,1751241045527,-440.0,0.00018563,2]
[368619631,1751241045537,-460.0,0.00018563,2]
[368619632,1751241045547,-460.0,0.00018563,2]
[368619633,1751241045556,-460.0,0.00018563,2]
[368619634,1751241045566,-462.08451736,0.00018563,2]
[368619635,1751241045576,-460.0,0.00018563,2]
[368619636,1751241045586,-460.0,0.00018563,2]
[368619637,1751241045595,-460.0,0.00018563,2]
[368619638,1751241045604,-460.0,0.00018563,2]
[368619639,1751241045614,-500.0,0.00018563,2]
[368619640,1751241045623,-729.37,0.00018563,2]
[368619641,1751241045633,-150.67399097,0.00018563,2]
[368619642,1751241045642,-460.0,0.00018563,2]
[368619643,1751241045652,-608.38,0.00018563,2]
[368619644,1751241045662,-460.0,0.00018563,2]
[368619645,1751241045671,-460.0,0.00018563,2]
[368619646,1751241045681,-460.0,0.00018563,2]
[368619647,1751241045690,-460.0,0.00018563,2]
[368619648,1751241045699,-460.0,0.00018563,2]
[368619649,1751241045708,-460.0,0.00018563,2]
[368619650,1751241045718,-460.0,0.00018563,2]
[368619651,1751241045727,-460.0,0.00018563,2]
[368619652,1751241045736,-460.0,0.00018563,2]
[368619653,1751241045745,-460.0,0.00018563,2]
[368619655,1751241045754,-460.0,0.00018563,2]
[368619657,1751241045763,-467.27640029,0.00018563,2]
[368619658,1751241045772,-460.0,0.00018563,2]
[368619659,1751241045781,-546.36,0.00018564,2]
[368619660,1751241045791,-1244.77,0.00018564,2]
[368619661,1751241045801,-460.0,0.00018564,2]
[368619662,1751241045810,-500.0,0.00018566,2]
[368619663,1751241045819,-460.0,0.00018567,2]
[368619664,1751241045828,-460.0,0.00018567,2]
[368619666,1751241045837,-460.0,0.00018567,2]
[368619667,1751241045846,-461.17896764,0.00018567,2]
[368619668,1751241045855,-460.0,0.00018567,2]
[368619669,1751241045864,-460.0,0.00018567,2]
[368619670,1751241045873,-752.27,0.00018567,2]
[368619671,1751241045883,-460.0,0.00018567,2]
[368619672,1751241045893,-460.0,0.00018567,2]
[368619673,1751241045902,-460.0,0.00018567,2]
[368619674,1751241045911,-460.0,0.00018567,2]
[368619675,1751241045921,-460.0,0.00018567,2]
[368619676,1751241045931,-460.0,0.00018567,2]
[368619677,1751241045943,-510.99310834,0.00018569,2]
[368619678,1751241045952,-460.0,0.00018569,2]
[368619679,1751241045961,-216.4,0.00018569,2]
[368619680,1751241045970,-460.0,0.00018569,2]
[368619681,1751241045979,-460.0,0.00018569,2]
[368619682,1751241045990,-460.0,0.00018569,2]
[368619683,1751241046000,-170.46170455,0.00018569,2]
[368619684,1751241046009,-460.0,0.00018569,2]
[368619685,1751241046020,-410.0,0.00018569,2]
[368619686,1751241046030,-500.0,0.00018569,2]
[368619687,1751241046039,-460.0,0.00018569,2]
[368619688,1751241046048,-460.0,0.00018569,2]
[368619689,1751241046057,-465.47019445,0.00018569,2]
[368619690,1751241046066,-460.0,0.0001857,2]
[368619691,1751241046075,-435.65884107,0.0001857,2]
[368619692,1751241046085,-460.0,0.0001857,2]
[368619693,1751241046095,-460.0,0.0001857,2]
[368619694,1751241046104,-460.0,0.0001857,2]
[368619695,1751241046113,-460.0,0.0001857,2]
[368619696,1751241046123,-460.0,0.0001857,2]
[368619697,1751241046132,-464.23988757,0.0001857,2]
[368619698,1751241046142,-460.0,0.0001857,2]
[368619699,1751241046151,-460.0,0.0001857,2]
[368619700,1751241046161,-460.0,0.0001857,2]
[368619701,1751241046170,-460.0,0.0001857,2]
[368619702,1751241046180,-460.0,0.0001857,2]
[368619703,1751241046190,-460.0,0.0001857,2]
[368619704,1751241046199,-422.98057995,0.0001857,2]
[368619705,1751241046207,-460.0,0.0001857,2]
[368619706,1751241046217,-460.0,0.0001857,2]
[368619707,1751241046226,-545.05932215,0.0001857,2]
[368619708,1751241046235,-460.0,0.0001857,2]
[368619709,1751241046244,-460.0,0.0001857,2]
[368619710,1751241046253,-482.58,0.0001857,2]
[368619711,1751241046262,-392.2592204,0.0001857,2]
[368619712,1751241046271,-460.0,0.0001857,2]
[368619713,1751241046280,-465.98167006,0.0001857,2]
[368619714,1751241046289,-460.0,0.0001857,2]
[368619715,1751241046299,-460.0,0.0001857,2]
[368619716,1751241046308,-460.0,0.0001857,2]
[368619717,1751241046317,-460.0,0.0001857,2]
[368619718,1751241046326,-460.0,0.0001857,2]
[368619719,1751241046335,-460.0,0.0001857,2]
[368619720,1751241046345,-460.0,0.0001857,2]
[368619721,1751241046354,-500.80343711,0.0001857,2]
[368619722,1751241046363,-460.0,0.0001857,2]
[368619723,1751241046372,-343.27474376,0.0001857,2]
[368619724,1751241046381,-460.0,0.00018573,2]
[368619725,1751241046390,-460.0,0.00018573,2]
[368619726,1751241046400,-460.0,0.00018573,2]
[368619727,1751241046410,-460.0,0.00018573,2]
[368619728,1751241046419,-460.0,0.00018573,2]
[368619729,1751241046428,-465.74143929,0.00018573,2]
[368619730,1751241046437,-460.0,0.00018573,2]
[368619731,1751241046446,-460.0,0.00018573,2]
[368619732,1751241046455,-460.0,0.00018573,2]
[368619733,1751241046464,-460.0,0.00018573,2]
[368619734,1751241046473,-254.26203425,0.00018589,2]
[368619735,1751241046482,-460.0,0.00018589,2]
[368619736,1751241046491,-289.81466949,0.00018589,2]
[368619737,1751241046500,-460.0,0.00018589,2]
[368619739,1751241046510,-2217.40136788,0.00018602,2]
[368619741,1751241046519,-460.0,0.00018825,2]
[368619743,1751241046528,-460.0,0.00018825,2]
[368619745,1751241046538,-460.0,0.00018825,2]
[368619747,1751241046547,-460.0,0.00018825,2]
[368619748,1751241046556,-1966.62,0.00018825,2]
[368619749,1751241046565,-460.0,0.00018825,2]
[368619750,1751241046575,-460.0,0.00018825,2]
[368619751,1751241046584,-460.0,0.00018825,2]
[368619752,1751241046593,-460.0,0.00018825,2]
[368619753,1751241046602,-460.0,0.00018825,2]
[368619754,1751241046611,-460.0,0.0001883,2]
[368619755,1751241046620,-460.0,0.0001883,2]
[368619756,1751241046628,-460.0,0.0001883,2]
[368619757,1751241046638,-460.0,0.0001883,2]
[368619758,1751241046647,-460.0,0.00018831,2]
[368619759,1751241046656,-460.0,0.00018831,2]
[368619760,1751241046665,-1525.14,0.00018831,2]
[368619761,1751241046674,-2512.81,0.00018831,2]
[368619762,1751241046683,-460.0,0.00018831,2]
[368619763,1751241046692,-3259.9,0.00018831,2]
[368619764,1751241046701,-568.58,0.00018831,2]
[368619765,1751241046710,-460.0,0.00018831,2]
[368619766,1751241046719,-460.0,0.00018831,2]
[368619767,1751241046729,-2961.32,0.00018831,2]
[368619768,1751241046738,-460.0,0.00018831,2]
[368619769,1751241046747,-549.14393477,0.00018831,2]
[368619770,1751241046757,-2848.07,0.00018831,2]
[368619771,1751241046766,-3176.44,0.00018831,2]
[368619772,1751241046775,-460.0,0.00018831,2]
[368619773,1751241046784,-460.0,0.00018831,2]
[368619774,1751241046793,-1539.44,0.00018831,2]
[368619775,1751241046804,-460.0,0.00018831,2]
[368619776,1751241046814,-460.0,0.00018831,2]
[368619777,1751241046824,-563.34,0.00018831,2]
[368619778,1751241046833,-499.37,0.00018831,2]
[368619779,1751241046843,-1523.33,0.00018831,2]
[368619780,1751241046852,-460.0,0.00018831,2]
[368619782,1751241046861,-460.0,0.00018833,2]
[368619783,1751241046871,-460.0,0.00018833,2]
[368619785,1751241046880,-460.0,0.00018833,2]
[368619786,1751241046889,-410.35596139,0.00018833,2]
[368619787,1751241046899,-460.0,0.00018833,2]
[368619788,1751241046908,-460.0,0.00018833,2]
[368619789,1751241046917,-460.0,0.00018833,2]
[368619790,1751241046928,-460.0,0.00018833,2]
[368619791,1751241046940,-460.0,0.00018833,2]
[368619792,1751241046951,-460.0,0.00018833,2]
[368619793,1751241046961,-471.02291996,0.00018833,2]
[368619794,1751241046971,-460.0,0.00018833,2]
[368619795,1751241046981,-460.0,0.00018833,2]
[368619796,1751241046991,-460.0,0.00018833,2]
[368619797,1751241047000,-460.0,0.00018833,2]
[368619798,1751241047010,-460.0,0.00018833,2]
[368619799,1751241047019,-460.0,0.00018833,2]
[368619800,1751241047029,-587.87,0.00018833,2]
[368619801,1751241047039,-460.0,0.00018833,2]
[368619802,1751241047048,-460.0,0.00018833,2]
[368619803,1751241047057,-602.87,0.00018833,2]
[368619804,1751241047066,-460.0,0.00018833,2]
[368619805,1751241047076,-460.0,0.00018833,2]
[368619806,1751241047086,-750.52,0.00018833,2]
[368619807,1751241047095,-460.0,0.00018833,2]
[368619808,1751241047104,-460.0,0.00018833,2]
[368619809,1751241047113,-460.0,0.00018833,2]
[368619810,1751241047123,-460.0,0.00018833,2]
[368619811,1751241047132,-460.0,0.00018833,2]
[368619812,1751241047141,-460.0,0.00018833,2]
[368619813,1751241047153,-465.41711755,0.00018833,2]
[368619814,1751241047163,-500.0,0.00018833,2]
[368619815,1751241047172,-460.0,0.00018833,2]
[368619816,1751241047180,-665.73,0.00018833,2]
[368619817,1751241047191,-460.0,0.00018833,2]
[368619818,1751241047201,-518.24,0.00018833,2]
[368619819,1751241047210,-460.0,0.00018833,2]
[368619820,1751241047221,-460.0,0.00018833,2]
[368619821,1751241047230,-1005.54,0.00018833,2]
[368619822,1751241047239,-489.0332452,0.00018833,2]
[368619823,1751241047248,-460.0,0.00018833,2]
[368619824,1751241047257,-460.0,0.00018833,2]
[368619825,1751241047266,-460.0,0.00018833,2]
[368619826,1751241047275,-460.0,0.00018833,2]
[368619827,1751241047285,-460.0,0.00018833,2]
[368619828,1751241047294,-460.0,0.00018833,2]
[368619829,1751241047305,-460.0,0.00018833,2]
[368619830,1751241047314,-460.0,0.00018833,2]
[368619831,1751241047323,-500.0,0.00018833,2]
[368619832,1751241047333,-460.0,0.00018833,2]
[368619833,1751241047342,-460.0,0.00018833,2]
[368619834,1751241047351,-375.2314502,0.00018834,2]
[368619835,1751241047361,-460.0,0.00018834,2]
[368619836,1751241047371,-460.0,0.00018834,2]
[368619837,1751241047380,-460.0,0.00018834,2]
[368619838,1751241047390,-956.85,0.00018834,2]
[368619839,1751241047400,-460.0,0.00018834,2]
[368619840,1751241047409,-460.0,0.00018834,2]
[368619841,1751241047420,-460.0,0.00018834,2]
[368619842,1751241047429,-460.0,0.00018834,2]
[368619843,1751241047439,-460.0,0.00018834,2]
[368619844,1751241047448,-460.0,0.00018834,2]
[368619845,1751241047458,-3836.87,0.00018834,2]
[368619846,1751241047468,-547.33,0.00018834,2]
[368619847,1751241047477,-1212.96,0.00018834,2]
[368619848,1751241047487,-460.0,0.00018834,2]
[368619849,1751241047498,-460.0,0.00018834,2]
[368619850,1751241047508,-460.0,0.00018834,2]
[368619851,1751241047518,-1557.76,0.00018834,2]
[368619852,1751241047528,-511.49,0.00018834,2]
[368619853,1751241047664,-460.0,0.00018834,2]
[368619854,1751241047674,-623.64,0.00018834,2]
[368619855,1751241047683,-460.0,0.00018835,2]
[368619856,1751241047693,-460.0,0.00018835,2]
[368619857,1751241047702,-460.0,0.00018835,2]
[368619858,1751241047712,-460.0,0.00018835,2]
[368619859,1751241047722,-500.0,0.00018835,2]
[368619860,1751241047731,-500.0,0.00018835,2]
[368619861,1751241047740,-460.0,0.00018836,2]
[368619862,1751241047749,-335.2087509,0.00018836,2]
[368619863,1751241047759,-460.0,0.00018836,2]
[368619864,1751241047768,-1246.97,0.00018836,2]
[368619865,1751241047778,-1117.53,0.00018836,2]
[368619866,1751241047788,-460.0,0.00018836,2]
[368619867,1751241047798,-460.0,0.00018836,2]
[368619868,1751241047808,-460.0,0.00018836,2]
[368619869,1751241047819,-1705.81,0.00018836,2]
[368619870,1751241047829,-552.30136842,0.00018836,2]
[368619871,1751241047839,-460.0,0.00018836,2]
[368619872,1751241047849,-462.09312856,0.00018836,2]
[368619873,1751241047858,-1289.95,0.00018836,2]
[368619874,1751241047868,-1644.07,0.00018836,2]
[368619875,1751241047879,-847.69,0.00018836,2]
[368619876,1751241047888,-460.0,0.00018836,2]
[368619877,1751241047898,-460.0,0.00018837,2]
[368619878,1751241047907,-460.0,0.00018837,2]
[368619879,1751241047917,-350.0,0.00018837,2]
[368619880,1751241047927,-460.0,0.00018837,2]
[368619881,1751241047938,-460.0,0.00018837,2]
[368619882,1751241047950,-467.84179581,0.00018837,2]
[368619883,1751241047959,-460.0,0.00018837,2]
[368619884,1751241047968,-460.0,0.00018837,2]
[368619885,1751241047977,-460.0,0.00018837,2]
[368619886,1751241047987,-179.77402267,0.00018837,2]
[368619887,1751241047996,-460.0,0.00018837,2]
[368619888,1751241048005,-460.0,0.00018837,2]
[368619889,1751241048015,-460.0,0.00018837,2]
[368619890,1751241048025,-460.0,0.00018837,2]
[368619891,1751241048035,-460.0,0.00018837,2]
[368619892,1751241048045,-460.0,0.00018837,2]
[368619893,1751241048054,-460.0,0.00018837,2]
[368619894,1751241048064,-460.0,0.00018837,2]
[368619895,1751241048073,-460.0,0.00018837,2]
[368619896,1751241048083,-585.0,0.00018837,2]
[368619897,1751241048092,-460.0,0.00018837,2]
[368619898,1751241048102,-464.75915358,0.00018837,2]
[368619899,1751241048111,-460.0,0.00018837,2]
[368619900,1751241048121,-460.0,0.00018837,2]
[368619901,1751241048130,-460.0,0.00018837,2]
[368619902,1751241048140,-460.0,0.00018837,2]
[368619903,1751241048149,-460.0,0.00018837,2]
[368619904,1751241048158,-465.67539578,0.00018837,2]
[368619905,1751241048168,-495.44,0.00018837,2]
[368619906,1751241048177,-460.0,0.00018837,2]
[368619907,1751241048187,-460.0,0.00018837,2]
[368619908,1751241048196,-460.0,0.00018837,2]
[368619909,1751241048205,-460.0,0.00018837,2]
[368619910,1751241048214,-460.0,0.00018837,2]
[368619911,1751241048223,-460.0,0.00018837,2]
[368619912,1751241048233,-500.0,0.00018837,2]
[368619913,1751241048243,-729.37,0.00018837,2]
[368619914,1751241048253,-460.0,0.00018837,2]
[368619915,1751241048262,-608.38,0.00018837,2]
[368619916,1751241048271,-460.0,0.00018837,2]
[368619917,1751241048280,-460.0,0.00018837,2]
[368619918,1751241048289,-460.0,0.00018837,2]
[368619919,1751241048299,-460.0,0.00018837,2]
[368619920,1751241048308,-460.0,0.00018837,2]
[368619921,1751241048317,-460.0,0.00018837,2]
[368619922,1751241048327,-460.0,0.00018837,2]
[368619923,1751241048336,-460.0,0.00018837,2]
[368619924,1751241048345,-460.0,0.00018837,2]
[368619925,1751241048355,-460.0,0.00018837,2]
[368619926,1751241048364,-546.36,0.00018838,2]
[368619927,1751241048374,-1244.77,0.00018838,2]
[368619928,1751241048384,-460.0,0.00018838,2]
[368619929,1751241048394,-519.3629283,0.00018838,2]
[368619930,1751241048404,-460.0,0.00018841,2]
[368619931,1751241048413,-460.0,0.00018841,2]
[368619932,1751241048423,-460.0,0.00018841,2]
[368619933,1751241048433,-460.0,0.00018841,2]
[368619934,1751241048443,-461.72103532,0.00018841,2]
[368619935,1751241048452,-752.27,0.00018841,2]
[368619936,1751241048461,-460.0,0.00018841,2]
[368619937,1751241048470,-460.0,0.00018841,2]
[368619938,1751241048480,-194.42,0.00018841,2]
[368619939,1751241048490,-460.0,0.00018841,2]
[368619940,1751241048500,-460.0,0.00018841,2]
[368619941,1751241048511,-460.0,0.00018843,2]
[368619942,1751241048521,-460.0,0.00018843,2]
[368619943,1751241048531,-460.0,0.00018843,2]
[368619944,1751241048541,-460.0,0.00018843,2]
[368619945,1751241048550,-188.72126539,0.00018843,2]
[368619946,1751241048560,-460.0,0.00018844,2]
[368619947,1751241048570,-460.0,0.00018844,2]
[368619948,1751241048579,-460.0,0.00018844,2]
[368619949,1751241048589,-460.0,0.00018844,2]
[368619950,1751241048599,-460.0,0.00018844,2]
[368619951,1751241048608,-460.0,0.00018844,2]
[368619952,1751241048617,-460.0,0.00018844,2]
[368619953,1751241048626,-460.0,0.00018844,2]
[368619954,1751241048636,-169.19433064,0.00018844,2]
[368619955,1751241048646,-460.0,0.00018844,2]
[368619956,1751241048655,-460.0,0.00018844,2]
[368619957,1751241048666,-460.0,0.00018844,2]
[368619958,1751241048676,-330.09404417,0.00018844,2]
[368619959,1751241048687,-460.0,0.00018844,2]
[368619960,1751241048696,-460.0,0.00018844,2]
[368619961,1751241048706,-460.0,0.00018847,2]
[368619962,1751241048715,-460.0,0.00018847,2]
[368619963,1751241048725,-460.0,0.00018847,2]
[368619964,1751241048735,-460.0,0.00018847,2]
[368619965,1751241048745,-460.0,0.00018847,2]
[368619966,1751241048754,-460.0,0.00018847,2]
[368619967,1751241048764,-460.0,0.00018847,2]
[368619968,1751241048773,-460.0,0.00018847,2]
[368619969,1751241048783,-465.82844052,0.00018847,2]
[368619970,1751241048793,-500.0,0.00018862,2]
[368619971,1751241048803,-500.0,0.00018862,2]
[368619972,1751241048812,-458.91259767,0.00018862,2]
[368619973,1751241048822,-500.0,0.00018862,2]
[368619974,1751241048832,-500.0,0.00018862,2]
[368619975,1751241048842,-500.0,0.00018862,2]
[368619976,1751241048851,-500.0,0.00018862,2]
[368619977,1751241048861,-460.0,0.00018863,2]
[368619978,1751241048870,-502.55035468,0.00018888,2]
[368619979,1751241048880,-500.0,0.00018888,2]
[368619980,1751241048889,-500.0,0.00018888,2]
[368619981,1751241048899,-500.0,0.00018888,2]
[368619982,1751241048909,-500.0,0.00018888,2]
[368619983,1751241048918,-5040.37717581,0.000189,2]
[368619984,1751241048928,-2941.09603816,0.000189,2]
[368619985,1751241048938,-500.0,0.00018907,2]
[368619986,1751241048950,-500.0,0.00018907,2]
[368619987,1751241048960,-500.0,0.00018907,2]
[368619988,1751241048969,-501.11637594,0.00018907,2]
[368619989,1751241048979,-500.0,0.00018907,2]
[368619990,1751241048989,-500.0,0.00018907,2]
[368619991,1751241048998,-500.0,0.00018907,2]
[368619992,1751241049007,-500.0,0.00018907,2]
[368619993,1751241049019,-500.0,0.00018907,2]
[368619994,1751241049029,-413.02743098,0.00018907,2]
[368619995,1751241049038,-225.28814004,0.00018907,2]
[368619996,1751241049047,-500.0,0.00018907,2]
[368619997,1751241049057,-500.0,0.00018907,2]
[368619998,1751241049067,-500.0,0.00018907,2]
[368619999,1751241049076,-503.04171577,0.00018907,2]
[368620000,1751241049085,-500.0,0.00018907,2]
[368620001,1751241049095,-500.0,0.00018907,2]
[368620002,1751241049104,-500.20967301,0.00018907,2]
[368620003,1751241049113,-500.0,0.00018907,2]
[368620004,1751241049123,-500.0,0.00018907,2]
[368620005,1751241049134,-500.0,0.00018907,2]
[368620006,1751241049143,-500.4688799,0.00018907,2]
[368620007,1751241049152,-524.0,0.00018955,2]
[368620008,1751241049162,-500.0,0.00018971,2]
[368620009,1751241049172,-500.0,0.00018971,2]
[368620010,1751241049182,-500.0,0.00018971,2]
[368620011,1751241049192,-2217.40136788,0.00019013,2]